bitfinex/quotes_BTCUSD_20250417
["timestamp","ask_amount","ask_price","bid_price","bid_amount"]
[1744930154487,0.01179704,84767.0,84763.0,0.08258265]
[1744930154852,0.01179704,84767.0,84763.0,0.07078505]
[1744930156382,0.0117969,84768.0,84765.0,0.07078382]
[1744930157570,0.01179704,84767.0,84763.0,0.08258265]
[1744930159310,0.0117969,84768.0,84763.0,0.08258265]
[1744930159828,0.01179676,84769.0,84764.0,0.08258169]
[1744930160058,0.0117969,84768.0,84764.0,0.08258169]
[1744930161114,0.0117969,84768.0,84765.0,0.07078347]
[1744930161319,0.01179676,84769.0,84765.0,0.07078347]
[1744930161550,0.01179704,84767.0,84764.0,0.07078423]
[1744930161781,0.0117969,84768.0,84764.0,0.07078423]
[1744930162010,0.01179676,84769.0,84765.0,0.07078356]
[1744930162204,0.01179718,84766.0,84760.0,0.30455071]
[1744930162364,0.01179746,84764.0,84761.0,0.35179787]
[1744930162564,0.01179732,84765.0,84761.0,0.42258472]
[1744930164375,0.24774435,84765.0,84761.0,0.42258472]
[1744930166146,0.24774256,84766.0,84762.0,0.01179773]
[1744930166642,0.01179718,84766.0,84762.0,0.08258356]
[1744930167332,0.01179718,84766.0,84762.0,0.01179773]
[1744930167333,0.01179732,84765.0,84762.0,0.01179773]
[1744930168009,0.01179732,84765.0,84762.0,0.08258351]
[1744930172073,0.01179718,84766.0,84763.0,0.08258251]
[1744930172565,0.01179634,84772.0,84767.0,0.01179704]
[1744930172779,0.24772837,84771.0,84767.0,0.01179704]
[1744930173886,0.01179662,84770.0,84766.0,0.01179718]
[1744930174098,0.23595479,84762.0,84760.0,0.30455071]
[1744930174275,0.23890427,84762.0,84760.0,0.13188]
[1744930174477,0.01179801,84760.0,84755.0,0.00766237]
[1744930174675,0.01179829,84758.0,84752.0,0.17267071]
[1744930174880,0.01179857,84756.0,84753.0,0.08259233]
[1744930175047,0.24776979,84757.0,84754.0,0.08259196]
[1744930175251,0.23597736,84754.0,84752.0,0.17267071]
[1744930175455,0.01179871,84755.0,84752.0,0.19283303]
[1744930176322,0.24777477,84755.0,84752.0,0.19283303]
[1744930177946,0.23597915,84754.0,84752.0,0.19283303]
[1744930180128,0.23597915,84754.0,84752.0,0.02016232]
[1744930180300,0.23892886,84754.0,84752.0,0.02016232]
[1744930180542,0.23598541,84751.0,84750.0,0.0007]
[1744930180742,0.23598541,84751.0,84750.0,0.02066151]
[1744930180859,0.23598541,84751.0,84750.0,0.0007]
[1744930181270,0.23893523,84751.0,84750.0,0.02119282]
[1744930184211,0.28633523,84751.0,84750.0,0.02119282]
[1744930184432,0.28338541,84751.0,84750.0,0.02119282]
[1744930184863,0.28338541,84751.0,84741.0,0.0024214]
[1744930184864,0.23601047,84742.0,84741.0,0.0024214]
[1744930185060,0.0118033,84722.0,84711.0,0.002]
[1744930185262,0.26198012,84717.0,84711.0,0.002]
[1744930185438,0.11944791,84717.0,84716.0,0.02090712]
[1744930185636,0.0118033,84722.0,84716.0,0.02090712]
[1744930185637,0.00295136,84722.0,84716.0,0.02090712]
[1744930185846,0.23608012,84717.0,84716.0,0.02977702]
[1744930186016,0.23608012,84717.0,84716.0,0.0004214]
[1744930186218,0.00295111,84717.0,84716.0,0.00047429]
[1744930186824,0.00295111,84717.0,84716.0,0.02078154]
[1744930187026,0.00295109,84718.0,84716.0,0.00047429]
[1744930187234,0.23608012,84717.0,84716.0,0.00047429]
[1744930189487,0.23608012,84717.0,84716.0,0.02024213]
[1744930189775,0.35552803,84717.0,84716.0,0.02024213]
[1744930189979,0.23608012,84717.0,84716.0,0.02024213]
[1744930190189,0.23903142,84717.0,84716.0,0.02024213]
[1744930190685,0.00295128,84718.0,84716.0,0.02024213]
[1744930190840,0.24788002,84719.0,84716.0,0.02024213]
[1744930191053,0.23607949,84718.0,84716.0,0.02024213]
[1744930191978,0.00295097,84717.0,84716.0,0.02024213]
[1744930194267,0.23609963,84710.0,84709.0,0.20047612]
[1744930194471,0.23609963,84710.0,84709.0,0.20921347]
[1744930195091,0.23609963,84710.0,84709.0,0.00873735]
[1744930195291,0.23609963,84710.0,84709.0,0.01213862]
[1744930196145,0.23609963,84710.0,84709.0,0.03244014]
[1744930196371,0.24789875,84712.0,84709.0,0.03244014]
[1744930197506,0.23609923,84711.0,84709.0,0.03244014]
[1744930203223,0.0029512,84710.0,84709.0,0.03244014]
[1744930203466,0.2390505,84711.0,84709.0,0.03244014]
[1744930203999,0.23709923,84711.0,84709.0,0.02035979]
[1744930204203,0.0466,84710.0,84709.0,0.02035979]
[1744930204748,0.16604791,84710.0,84709.0,0.02035979]
[1744930205177,0.16899953,84710.0,84709.0,0.02035979]
[1744930212903,0.23611914,84703.0,84701.0,0.00904872]
[1744930213124,0.00295164,84702.0,84701.0,0.00918364]
[1744930213282,0.00295164,84702.0,84701.0,0.00013492]
[1744930215042,0.00295164,84702.0,84701.0,0.01888464]
[1744930215249,0.00295164,84702.0,84701.0,0.00013492]
[1744930216762,0.00295164,84702.0,84701.0,0.00914474]
[1744930217373,0.23611914,84703.0,84701.0,0.00013492]
[1744930217992,0.00295169,84702.0,84701.0,0.00013492]
[1744930218140,0.23611914,84703.0,84701.0,0.00013492]
[1744930218772,0.01180539,84707.0,84702.0,0.07083658]
[1744930218773,0.01180553,84706.0,84702.0,0.07083658]
[1744930219056,0.01180567,84705.0,84701.0,0.03049387]
[1744930219368,0.01180567,84705.0,84701.0,0.00892903]
[1744930219569,0.01180567,84705.0,84701.0,0.02073526]
[1744930220275,0.01180567,84705.0,84701.0,0.091572]
[1744930220477,0.01475735,84704.0,84701.0,0.00892903]
[1744930220702,0.01180567,84705.0,84702.0,0.07083658]
[1744930221537,0.01180567,84705.0,84701.0,0.03025082]
[1744930221941,0.01475721,84705.0,84701.0,0.03025082]
[1744930222145,0.25087248,84705.0,84701.0,0.01844459]
[1744930222357,0.01180581,84704.0,84701.0,0.01844459]
[1744930222536,0.01475735,84704.0,84701.0,0.01844459]
[1744930223060,0.01180581,84704.0,84701.0,0.42928142]
[1744930223201,0.01180567,84705.0,84701.0,0.44979423]
[1744930223604,0.24791341,84707.0,84703.0,0.01180595]
[1744930224051,0.24791784,84706.0,84702.0,0.34]
[1744930225395,0.01180567,84705.0,84701.0,0.10979423]
[1744930225598,0.00295153,84704.0,84703.0,0.00344631]
[1744930225775,0.23611914,84703.0,84702.0,0.00344478]
[1744930225961,0.23611914,84703.0,84701.0,0.02715117]
[1744930226158,0.24791352,84707.0,84702.0,0.00344326]
[1744930226370,0.23611826,84704.0,84702.0,0.00344326]
[1744930226575,0.23906979,84704.0,84702.0,0.00344326]
[1744930245744,0.0465,84703.0,84702.0,0.00344326]
[1744930246249,0.23612193,84702.0,84701.0,0.01844459]
[1744930246847,0.23907376,84702.0,84701.0,0.01844459]
[1744930247345,0.40632167,84702.0,84701.0,0.01844459]
[1744930247624,0.40336984,84702.0,84701.0,0.01844459]
[1744930256660,0.35656984,84702.0,84701.0,0.01844459]
[1744930261734,0.35556984,84702.0,84701.0,0.01844459]
[1744930267813,0.23612193,84702.0,84701.0,0.01844459]
[1744930268004,0.23907381,84702.0,84701.0,0.01844459]
[1744930280208,0.23612193,84702.0,84701.0,0.01844459]
[1744930280602,0.43612193,84702.0,84701.0,0.01844459]
[1744930284063,0.43612193,84702.0,84701.0,0.40844459]
[1744930284064,0.2,84702.0,84701.0,0.40844459]
[1744930284269,0.2,84702.0,84701.0,0.479282]
[1744930284499,0.2,84702.0,84701.0,0.48277596]
[1744930284703,0.11064584,84702.0,84701.0,0.48277596]
[1744930284904,0.11064584,84702.0,84701.0,0.41193855]
[1744930286569,0.11064584,84702.0,84701.0,0.54537855]
[1744930295541,0.11064584,84702.0,84701.0,0.41193855]
[1744930295760,0.11064584,84702.0,84701.0,0.54537855]
[1744930296507,0.11064584,84702.0,84701.0,0.37848905]
[1744930299575,0.11064584,84702.0,84701.0,0.40172245]
[1744930302027,0.34676777,84702.0,84701.0,0.40172245]
[1744930302334,0.34676777,84702.0,84701.0,0.39822849]
[1744930302476,0.34676777,84702.0,84701.0,0.40162944]
[1744930306122,0.34676777,84702.0,84701.0,0.02763435]
[1744930308536,0.24793387,84700.0,84697.0,0.15344]
[1744930308740,0.24793387,84700.0,84697.0,0.15355149]
[1744930309061,0.01180637,84700.0,84697.0,0.15355149]
[1744930309262,0.01180623,84701.0,84697.0,0.18839198]
[1744930309767,0.01180623,84701.0,84697.0,0.25923212]
[1744930310420,0.01180623,84701.0,84698.0,0.34]
[1744930311020,0.11164584,84702.0,84698.0,0.34]
[1744930311223,0.11064584,84702.0,84698.0,0.42264574]
[1744930311447,0.12345193,84702.0,84698.0,0.42264574]
[1744930312194,0.11164584,84702.0,84699.0,0.08264512]
[1744930313116,0.12345193,84702.0,84699.0,0.08264512]
[1744930313674,0.11164584,84702.0,84699.0,0.08264512]
[1744930313879,0.12345193,84702.0,84699.0,0.08264512]
[1744930314080,0.11164584,84702.0,84700.0,0.07083783]
[1744930314285,0.11164584,84702.0,84699.0,0.01180651]
[1744930314500,0.12345193,84702.0,84698.0,0.42264574]
[1744930314688,0.01180623,84701.0,84698.0,0.34]
[1744930316120,0.12345193,84702.0,84699.0,0.41083908]
[1744930317114,0.12345193,84702.0,84699.0,0.34]
[1744930317797,0.12345193,84702.0,84698.0,0.4226459]
[1744930318228,0.12345193,84702.0,84699.0,0.07083867]
[1744930321521,0.11164584,84702.0,84699.0,0.07083867]
[1744930321810,0.11164584,84702.0,84700.0,0.07083771]
[1744930322307,0.11164584,84702.0,84699.0,0.08264518]
[1744930322783,0.11164584,84702.0,84700.0,0.07083746]
[1744930326154,0.09697584,84702.0,84700.0,0.07083746]
[1744930326349,0.09697584,84702.0,84700.0,0.41083746]
[1744930327510,0.0118047,84712.0,84707.0,0.07083205]
[1744930327511,0.01180484,84711.0,84707.0,0.07083205]
[1744930328295,0.01180456,84713.0,84709.0,0.07083043]
[1744930328498,0.01180414,84716.0,84712.0,0.07082814]
[1744930328499,0.01180428,84715.0,84712.0,0.07082814]
[1744930328695,0.01180442,84714.0,84712.0,0.00895947]
[1744930329031,0.01180456,84713.0,84710.0,0.41082921]
[1744930329237,0.24789642,84713.0,84710.0,0.34]
[1744930330953,0.0118047,84712.0,84709.0,0.34]
[1744930331476,0.0118047,84712.0,84709.0,0.41083024]
[1744930332277,0.24789914,84712.0,84709.0,0.07083024]
[1744930334003,0.24789914,84712.0,84707.0,0.07083221]
[1744930334211,0.01180498,84710.0,84707.0,0.07083221]
[1744930334933,0.01180484,84711.0,84707.0,0.07083221]
[1744930335410,0.0118047,84712.0,84709.0,0.07083059]
[1744930336023,0.24790041,84712.0,84705.0,0.08263944]
[1744930337906,0.01180498,84710.0,84707.0,0.07083233]
[1744930338103,0.01180581,84704.0,84702.0,0.34]
[1744930338311,0.24792486,84704.0,84702.0,0.34]
[1744930338652,0.29732486,84704.0,84702.0,0.34]
[1744930339359,0.24792686,84703.0,84700.0,0.34]
[1744930340294,0.23612367,84702.0,84700.0,0.34]
[1744930340641,0.24792686,84703.0,84700.0,0.34]
[1744930340950,0.01180609,84702.0,84699.0,0.34]
[1744930341151,0.28577622,84701.0,84699.0,0.34]
[1744930341367,0.23613308,84698.0,84697.0,0.04314519]
[1744930341918,0.23908488,84698.0,84697.0,0.04314519]
[1744930353930,0.23613308,84698.0,84697.0,0.04314519]
[1744930360739,0.01074753,84695.0,84691.0,0.18447834]
[1744930360972,0.01074753,84695.0,84691.0,0.0118552]
[1744930361669,0.24689023,84695.0,84691.0,0.0118552]
[1744930361875,0.01180721,84694.0,84691.0,4.757e-05]
[1744930365741,0.01180721,84694.0,84691.0,0.36122423]
[1744930368456,0.01180721,84694.0,84691.0,0.09206965]
[1744930368690,0.01074753,84695.0,84691.0,0.09206965]
[1744930368924,0.01074753,84695.0,84691.0,0.10387728]
[1744930369099,0.24793387,84700.0,84694.0,0.01180721]
[1744930369257,0.24793867,84699.0,84695.0,0.07084163]
[1744930370364,0.01180665,84698.0,84693.0,0.07084361]
[1744930370575,0.01180693,84696.0,84693.0,0.07084361]
[1744930370974,0.01180707,84695.0,84692.0,0.34]
[1744930371800,0.01180707,84695.0,84691.0,0.02122423]
[1744930373262,0.01180693,84696.0,84692.0,0.01180749]
[1744930373582,0.01180721,84694.0,84691.0,0.09206946]
[1744930374888,0.01180693,84696.0,84693.0,0.07084391]
[1744930375308,0.01180707,84695.0,84692.0,0.34]
[1744930375497,0.24795067,84695.0,84692.0,0.34]
[1744930378165,0.23614907,84693.0,84691.0,0.02122423]
[1744930379115,0.05265194,84692.0,84691.0,0.02122423]
[1744930379319,0.05265197,84692.0,84691.0,0.02122423]
[1744930380511,0.05265212,84692.0,84691.0,0.02122423]
[1744930381706,0.05365212,84692.0,84691.0,0.02122423]
[1744930395651,0.17310003,84692.0,84691.0,0.02122423]
[1744930395854,0.21930003,84692.0,84691.0,0.02122423]
[1744930400735,0.21930003,84692.0,84691.0,4.757e-05]
[1744930407538,0.21930003,84692.0,84691.0,1e-08]
[1744930409850,0.21704003,84692.0,84691.0,1e-08]
[1744930411789,0.001,84667.0,84652.0,0.0328214]
[1744930411935,0.35454085,84691.0,84652.0,0.0328214]
[1744930411936,0.2362586,84653.0,84652.0,0.0328214]
[1744930412143,0.23921243,84653.0,84652.0,0.05902391]
[1744930412376,0.2362586,84653.0,84652.0,0.05902391]
[1744930413382,0.0029535,84654.0,84652.0,0.05902391]
[1744930413554,0.2362586,84653.0,84652.0,0.05902391]
[1744930416904,0.2362586,84653.0,84652.0,0.06002391]
[1744930417710,0.41928826,84653.0,84651.0,1e-08]
[1744930418024,0.12240211,84652.0,84651.0,1e-08]
[1744930425839,0.00295368,84652.0,84651.0,1e-08]
[1744930426045,0.23921507,84652.0,84651.0,1e-08]
[1744930427059,0.00295368,84652.0,84651.0,1e-08]
[1744930428634,0.23921507,84652.0,84651.0,1e-08]
[1744930428836,0.00295368,84652.0,84651.0,1e-08]
[1744930429071,0.01476674,84652.0,84647.0,0.20005143]
[1744930429473,0.00295368,84652.0,84651.0,0.07087925]
[1744930429749,0.00395345,84653.0,84651.0,0.07087925]
[1744930430727,0.001,84653.0,84651.0,0.07087925]
[1744930431231,0.00299819,84654.0,84651.0,0.08269245]
[1744930431386,4.488e-05,84654.0,84651.0,0.08269245]
[1744930432437,4.488e-05,84654.0,84653.0,0.07087758]
[1744930437939,4.488e-05,84654.0,84651.0,0.09168141]
[1744930438147,4.488e-05,84654.0,84651.0,0.43168141]
[1744930438347,4.488e-05,84654.0,84652.0,0.07087785]
[1744930439156,4.488e-05,84654.0,84651.0,0.43168141]
[1744930439453,4.488e-05,84654.0,84651.0,0.09168141]
[1744930440908,4.488e-05,84654.0,84652.0,0.45897796]
[1744930451843,4.488e-05,84654.0,84651.0,0.09168141]
[1744930451844,0.23626004,84653.0,84651.0,0.34898896]
[1744930452825,0.23626004,84653.0,84651.0,0.00898896]
[1744930453026,0.01181306,84652.0,84649.0,0.01181348]
[1744930453436,0.24807957,84651.0,84647.0,0.34]
[1744930453644,0.0118132,84651.0,84647.0,0.4226958]
[1744930453844,0.0118132,84651.0,84648.0,0.01181362]
[1744930454045,0.24807942,84651.0,84648.0,0.01181362]
[1744930455267,0.01181306,84652.0,84649.0,0.08269378]
[1744930455658,0.01181306,84652.0,84649.0,0.01181348]
[1744930456319,0.24807604,84652.0,84649.0,0.01181348]
[1744930456548,0.24807866,84651.0,84648.0,0.01181362]
[1744930456845,0.24808325,84649.0,84646.0,0.34]
[1744930457362,0.23627256,84648.0,84646.0,0.34]
[1744930458003,0.24808325,84649.0,84646.0,0.34]
[1744930458350,0.23627458,84648.0,84646.0,0.34]
[1744930459703,0.24808325,84649.0,84646.0,0.34]
[1744930460729,0.23627406,84648.0,84646.0,0.34]
[1744930462252,0.00295336,84647.0,84646.0,0.34]
[1744930462548,0.23627406,84648.0,84646.0,0.34]
[1744930462728,0.23922752,84648.0,84646.0,0.34]
[1744930463139,0.24810068,84644.0,84642.0,0.34]
[1744930463334,0.24810068,84644.0,84642.0,0.47456]
[1744930465783,0.23628931,84642.0,84641.0,0.0260787]
[1744930466111,0.23524298,84637.0,84636.0,0.34]
[1744930466512,0.23524298,84637.0,84636.0,0.36065904]
[1744930466721,0.28504298,84637.0,84636.0,0.02065904]
[1744930466933,0.23631723,84632.0,84631.0,0.0004216]
[1744930467133,0.23927135,84632.0,84631.0,0.0004216]
[1744930467334,0.23927135,84632.0,84631.0,0.02101621]
[1744930467537,0.33667135,84632.0,84631.0,0.0004216]
[1744930467825,0.33371723,84632.0,84631.0,0.02139802]
[1744930468311,0.33371723,84632.0,84631.0,0.0004216]
[1744930468723,0.33371723,84632.0,84631.0,0.02129823]
[1744930473861,0.33471723,84632.0,84631.0,0.02129823]
[1744930474825,0.45416514,84632.0,84631.0,0.02129823]
[1744930475238,0.23634236,84623.0,84620.0,0.34534142]
[1744930475475,0.23634795,84621.0,84617.0,0.14679935]
[1744930475711,0.23634795,84621.0,84617.0,0.1349814]
[1744930475877,0.23634795,84621.0,84619.0,0.02069265]
[1744930476581,0.23634795,84621.0,84619.0,0.02114302]
[1744930476777,0.01181711,84623.0,84619.0,0.03017852]
[1744930477005,0.01181711,84623.0,84619.0,0.00087187]
[1744930477161,0.24816184,84623.0,84619.0,0.02217207]
[1744930477378,0.01181725,84622.0,84619.0,0.00087187]
[1744930477613,0.24816442,84622.0,84619.0,0.00087187]
[1744930477952,0.01181725,84622.0,84619.0,0.00087187]
[1744930478913,0.01181725,84622.0,84619.0,0.02191221]
[1744930479628,0.23634795,84621.0,84619.0,0.02191221]
[1744930481057,0.23634795,84621.0,84619.0,0.0307557]
[1744930481267,0.23634795,84621.0,84619.0,0.00087187]
[1744930481402,0.23634795,84621.0,84619.0,0.0212927]
[1744930481602,0.23634795,84621.0,84619.0,0.00087187]
[1744930481803,0.23734795,84621.0,84619.0,0.00087187]
[1744930488700,0.23734826,84621.0,84619.0,0.00087187]
[1744930488906,0.23734826,84621.0,84619.0,0.00957346]
[1744930489577,0.23734826,84621.0,84619.0,0.34957346]
[1744930489578,0.001,84621.0,84619.0,0.34957346]
[1744930490732,0.001,84621.0,84620.0,0.07090522]
[1744930491336,0.01181697,84624.0,84621.0,0.35181739]
[1744930491501,0.01181669,84626.0,84622.0,0.42272017]
[1744930491912,0.01281642,84628.0,84622.0,0.42272017]
[1744930491913,0.001,84628.0,84626.0,0.07089955]
[1744930492541,0.001,84628.0,84623.0,0.26581449]
[1744930492895,0.001,84628.0,84625.0,0.01181683]
[1744930493099,0.001,84628.0,84626.0,0.07089955]
[1744930494513,0.001,84628.0,84626.0,0.41089955]
[1744930495320,0.001,84628.0,84626.0,0.17534814]
[1744930495549,0.001,84628.0,84626.0,0.07089955]
[1744930501649,0.01181558,84634.0,84630.0,0.07089661]
[1744930501859,0.01281558,84634.0,84630.0,0.07089661]
[1744930502064,0.24814458,84629.0,84625.0,0.13612]
[1744930502264,0.01181614,84630.0,84625.0,0.13612]
[1744930502467,0.01181642,84628.0,84625.0,0.20702033]
[1744930502709,0.23632972,84628.0,84625.0,0.13612]
[1744930503315,0.24814614,84628.0,84625.0,0.13612]
[1744930503513,0.01181642,84628.0,84625.0,0.13612]
[1744930503922,0.01181586,84632.0,84628.0,0.01181642]
[1744930504130,0.011816,84631.0,84626.0,0.01181669]
[1744930505060,0.24813871,84631.0,84626.0,0.01181669]
[1744930505424,0.24814102,84630.0,84626.0,0.08271633]
[1744930506774,0.24814102,84630.0,84626.0,0.01181669]
[1744930506947,0.01181614,84630.0,84626.0,0.08271651]
[1744930507973,0.01181614,84630.0,84625.0,0.01239217]
[1744930508536,0.01181614,84630.0,84626.0,0.01181669]
[1744930508941,0.01181614,84630.0,84626.0,0.08271651]
[1744930510144,0.2481405,84630.0,84626.0,0.08271651]
[1744930510369,0.01181642,84628.0,84625.0,0.01239217]
[1744930510900,0.01181642,84628.0,84625.0,0.024209]
[1744930512813,0.01181642,84628.0,84625.0,0.01181683]
[1744930518140,0.24813642,84631.0,84626.0,0.08271688]
[1744930518375,0.01181614,84630.0,84627.0,0.01181655]
[1744930519361,0.01181614,84630.0,84625.0,0.01181683]
[1744930519362,0.01181628,84629.0,84625.0,0.01181683]
[1744930519847,0.01181628,84629.0,84621.0,0.09336585]
[1744930520013,0.24814482,84628.0,84625.0,0.01181683]
[1744930521549,0.24814482,84628.0,84624.0,0.01181697]
[1744930522654,0.24814482,84628.0,84624.0,0.08271829]
[1744930522851,0.24814482,84628.0,84624.0,0.01181697]
[1744930523350,0.24814482,84628.0,84622.0,0.23011305]
[1744930523555,0.24814482,84628.0,84624.0,0.01181697]
[1744930524139,0.01181655,84627.0,84624.0,0.01181697]
[1744930524659,0.01181669,84626.0,84621.0,0.10518324]
[1744930524835,0.01181683,84625.0,84621.0,0.10518324]
[1744930525016,0.01181683,84625.0,84622.0,0.01181725]
[1744930525441,0.01181669,84626.0,84622.0,0.08272026]
[1744930525960,0.01181669,84626.0,84623.0,0.01181711]
[1744930530705,0.24815246,84626.0,84622.0,0.01181725]
[1744930530957,0.01181669,84626.0,84622.0,0.01181725]
[1744930531855,0.01281669,84626.0,84622.0,0.01181725]
[1744930532082,0.24915242,84626.0,84622.0,0.01181725]
[1744930532621,0.01281669,84626.0,84622.0,0.01181725]
[1744930535295,0.01281669,84626.0,84623.0,0.08271934]
[1744930535983,0.001,84626.0,84623.0,0.08271934]
[1744930539141,0.001,84626.0,84625.0,0.07090103]
[1744930540880,0.001,84626.0,84625.0,0.07209605]
[1744930541084,0.001,84626.0,84625.0,0.07090103]
[1744930541481,0.001,84626.0,84625.0,0.07209564]
[1744930542553,0.001,84626.0,84625.0,0.07090103]
[1744930544693,0.001,84626.0,84625.0,0.07209564]
[1744930545007,0.001,84626.0,84625.0,0.07090103]
[1744930548098,0.001,84626.0,84622.0,0.08272008]
[1744930548291,0.001,84626.0,84624.0,0.07090135]
[1744930549886,0.001,84626.0,84623.0,0.08271897]
[1744930551389,0.001,84626.0,84624.0,0.01181697]
[1744930551566,0.001,84626.0,84624.0,0.0827181]
[1744930554387,0.0485,84636.0,84632.0,0.01181586]
[1744930554603,0.24813406,84632.0,84627.0,0.07089885]
[1744930554814,0.011816,84631.0,84628.0,0.01181642]
[1744930555264,0.011816,84631.0,84626.0,0.06312473]
[1744930555463,0.011816,84631.0,84625.0,0.01181683]
[1744930555683,0.011816,84631.0,84628.0,0.01181642]
[1744930556927,0.01181572,84633.0,84629.0,0.01181628]
[1744930557158,0.01181586,84632.0,84629.0,0.01181628]
[1744930557724,0.01181586,84632.0,84628.0,0.08271451]
[1744930557843,0.24813602,84631.0,84626.0,0.08271661]
[1744930558247,0.24813602,84631.0,84627.0,0.01181655]
[1744930559068,0.24813602,84631.0,84627.0,0.0827153]
[1744930560234,0.011816,84631.0,84627.0,0.0827153]
[1744930562953,0.01181614,84630.0,84626.0,0.42271661]
[1744930563436,0.01181614,84630.0,84627.0,0.42271547]
[1744930563842,0.01181614,84630.0,84627.0,0.34]
[1744930564387,0.23632784,84629.0,84627.0,0.34]
[1744930564591,0.01181642,84628.0,84624.0,0.34]
[1744930564771,0.01181655,84627.0,84624.0,0.34]
[1744930565585,0.01181655,84627.0,84622.0,0.34]
[1744930565586,0.23634236,84623.0,84622.0,0.34]
[1744930569480,0.0952,84626.0,84622.0,0.35181725]
[1744930569622,0.01181683,84625.0,84622.0,0.34]
[1744930570438,0.01181669,84626.0,84622.0,0.42272026]
[1744930571968,0.01181669,84626.0,84622.0,0.08272026]
[1744930572109,0.24815529,84625.0,84620.0,0.42272202]
[1744930574298,0.01181683,84625.0,84621.0,0.01181739]
[1744930574806,0.01181697,84624.0,84621.0,0.01181739]
[1744930578071,0.01181711,84623.0,84620.0,0.01181753]
[1744930579074,0.01181725,84622.0,84619.0,0.34957346]
[1744930579273,0.01181725,84622.0,84619.0,0.00957346]
[1744930580907,0.24816445,84622.0,84619.0,0.00957346]
[1744930582472,0.23634962,84621.0,84619.0,0.00957346]
[1744930586825,0.28284962,84621.0,84619.0,0.00957346]
[1744930588026,0.23634962,84621.0,84619.0,0.00957346]
[1744930592279,0.24816445,84622.0,84619.0,0.00957346]
[1744930595448,0.23634952,84621.0,84619.0,0.00957346]
[1744930599527,0.01181725,84622.0,84619.0,0.42047912]
[1744930601721,0.01181725,84622.0,84619.0,0.00957346]
[1744930604252,0.01181711,84623.0,84619.0,0.02139113]
[1744930604615,0.24816115,84623.0,84619.0,0.02139113]
[1744930604989,0.01181725,84622.0,84619.0,0.02139113]
[1744930606523,0.01181725,84622.0,84619.0,0.43229674]
[1744930607162,0.01181725,84622.0,84619.0,0.36139113]
[1744930607584,0.01181725,84622.0,84619.0,0.43229681]
[1744930610138,0.01181711,84623.0,84620.0,0.07090469]
[1744930610880,0.24816203,84623.0,84619.0,0.01181767]
[1744930611092,0.24820691,84623.0,84619.0,0.01181767]
[1744930612291,0.24820691,84623.0,84619.0,0.0205607]
[1744930614286,0.01186199,84623.0,84619.0,0.43146594]
[1744930614991,0.01186199,84623.0,84620.0,0.07090486]
[1744930616265,4.488e-05,84623.0,84620.0,0.07090486]
[1744930616399,4.488e-05,84623.0,84620.0,0.42272239]
[1744930617344,4.488e-05,84623.0,84621.0,0.41090385]
[1744930618562,4.488e-05,84623.0,84621.0,0.07090385]
[1744930624307,0.00493673,84626.0,84622.0,0.01181725]
[1744930624533,0.00493673,84626.0,84622.0,0.0119234]
[1744930624905,0.00493673,84626.0,84623.0,0.0709027]
[1744930628168,0.00493673,84626.0,84622.0,0.08282651]
[1744930628752,0.00493673,84626.0,84620.0,0.2855904]
[1744930628958,0.00493673,84626.0,84622.0,0.07090311]
[1744930629257,0.00493673,84626.0,84621.0,0.07090385]
[1744930629581,0.01181683,84625.0,84621.0,0.07090385]
[1744930630159,0.2481554,84625.0,84621.0,0.07090385]
[1744930630368,0.01181697,84624.0,84620.0,0.0119525]
[1744930630867,0.24815804,84624.0,84620.0,0.0119525]
[1744930631663,0.01181697,84624.0,84620.0,0.0119525]
[1744930632311,0.24815785,84624.0,84620.0,0.0119525]
[1744930633894,0.01181711,84623.0,84620.0,0.0119525]
[1744930636053,0.24816113,84623.0,84620.0,0.0119525]
[1744930641615,0.01181711,84623.0,84620.0,0.3519525]
[1744930641965,0.24816089,84623.0,84620.0,0.3519525]
[1744930642679,0.24321215,84623.0,84620.0,0.3519525]
[1744930644219,0.00686837,84623.0,84620.0,0.3519525]
[1744930648175,0.00686837,84623.0,84620.0,0.42285723]
[1744930649129,0.00686837,84623.0,84620.0,0.34013497]
[1744930649997,0.00686837,84623.0,84620.0,0.00013497]
[1744930657476,0.2481578,84624.0,84620.0,0.00013497]
[1744930657477,0.01181697,84624.0,84621.0,0.07090438]
[1744930657681,0.24815773,84624.0,84620.0,0.3519525]
[1744930658292,0.01181711,84623.0,84620.0,0.34013497]
[1744930658849,0.01181711,84623.0,84620.0,0.00013497]
[1744930659218,0.248161,84623.0,84620.0,0.00013497]
[1744930661088,0.23634795,84621.0,84620.0,0.00013497]
[1744930661522,0.23634515,84622.0,84620.0,0.00013497]
[1744930669235,0.24816226,84623.0,84620.0,0.00013497]
[1744930669527,0.28374795,84621.0,84620.0,0.00013497]
[1744930669747,0.0474,84621.0,84620.0,0.00013497]
[1744930676287,0.0456,84622.0,84620.0,0.00013497]
[1744930678127,0.28194731,84622.0,84620.0,0.00013497]
[1744930679250,0.0456,84622.0,84620.0,0.00013497]
[1744930679468,0.01181711,84623.0,84620.0,0.41103964]
[1744930682835,0.01181697,84624.0,84620.0,0.08285717]
[1744930686869,0.05453673,84626.0,84621.0,0.42272131]
[1744930687302,0.01181683,84625.0,84622.0,0.01181725]
[1744930687910,0.01181683,84625.0,84621.0,0.42272131]
[1744930688109,0.01181683,84625.0,84621.0,0.08272131]
[1744930692785,0.24815654,84624.0,84621.0,0.01181739]
[1744930693211,0.01181697,84624.0,84621.0,0.42272132]
[1744930697747,0.01181697,84624.0,84621.0,0.08272132]
[1744930698435,0.01181697,84624.0,84621.0,0.01181739]
[1744930699243,0.01181711,84623.0,84620.0,0.00013497]
[1744930699676,0.23634515,84622.0,84620.0,0.00013497]
[1744930706344,0.2481624,84622.0,84618.0,0.10414162]
[1744930706549,0.2481624,84622.0,84618.0,0.10427465]
[1744930708083,0.2481624,84622.0,84618.0,0.11296342]
[1744930713658,0.2481624,84622.0,84616.0,0.34]
[1744930714558,0.2481624,84622.0,84618.0,0.01181781]
[1744930715472,0.2481624,84622.0,84618.0,0.02081482]
[1744930715873,0.2481624,84622.0,84618.0,0.03981713]
[1744930716016,0.01181739,84621.0,84618.0,0.03981713]
[1744930719129,0.01181725,84622.0,84618.0,0.03981713]
[1744930719639,0.24816373,84622.0,84618.0,0.03981713]
[1744930722776,0.01181739,84621.0,84618.0,0.11072332]
[1744930726040,0.33115074,84620.0,84618.0,0.01900231]
[1744930726256,0.0482,84619.0,84618.0,0.01900231]
[1744930726411,0.0482,84619.0,84613.0,0.00929166]
[1744930726412,0.23636471,84615.0,84613.0,0.00929166]
[1744930726617,0.23931932,84615.0,84613.0,0.00933654]
[1744930727598,0.23931932,84615.0,84613.0,0.0279626]
[1744930742854,0.23931932,84615.0,84610.0,8e-05]
[1744930742855,0.01181865,84612.0,84606.0,0.05705234]
[1744930743081,0.01181865,84612.0,84606.0,0.39705234]
[1744930743414,0.24819386,84612.0,84608.0,0.01181921]
[1744930743927,0.24819386,84612.0,84608.0,0.03062711]
[1744930744556,0.01181879,84611.0,84608.0,0.03062711]